fUSD/lending_fUSD_20251023
["ID","MTS","AMOUNT","RATE_DAILY","PERIOD"]
[392156540,1761220188784,-500.0,0.00043897,120]
[392156541,1761220188808,-721.57,0.00043897,120]
[392156542,1761220188834,-5878.46,0.00043897,120]
[392156543,1761220188861,-500.0,0.00043897,120]
[392156544,1761220188887,-624.39,0.00043897,120]
[392156545,1761220188913,-500.0,0.00043897,120]
[392156546,1761220188939,-500.0,0.00043897,120]
[392156547,1761220188965,-500.0,0.00043897,120]
[392156548,1761220188995,-500.0,0.00043897,120]
[392156549,1761220189022,-500.0,0.00043897,120]
[392156550,1761220189047,-192853.51,0.00043899,2]
[392156551,1761220189076,-155555.0,0.00043899,60]
[392156552,1761220189102,-803.51844873,0.00043899,13]
[392156553,1761220189129,-719.02660738,0.00043899,120]
[392156554,1761220189156,-501.53031789,0.00043929,10]
[392156555,1761220189186,-433.0,0.00043944,2]
[392156556,1761220189212,-5397.5622363,0.00043958,3]
[392156557,1761220189239,-7292.74411912,0.00043958,3]
[392156558,1761220189263,-301.4,0.00043958,30]
[392156559,1761220189290,-21590.2489452,0.00043958,3]
[392156560,1761220189316,-21878.2323574,0.00043958,3]
[392156561,1761220189343,-10795.1244726,0.00043968,3]
[392156562,1761220189369,-14585.4882382,0.00043968,3]
[392156563,1761220189395,-254.96572641,0.00043973,30]
[392156564,1761220189424,-21590.2489452,0.00043978,3]
[392156565,1761220189452,-21878.2323574,0.00043978,3]
[392156566,1761220189497,-5397.5622363,0.00043978,3]
[392156567,1761220189527,-1089.35881757,0.00043978,3]
[392156591,1761220231551,-514.31012379,0.00043788,2]
[392156621,1761220231917,-36.46001975,0.00043788,2]
[392157176,1761220237501,-3256.86366,0.0004356,19]
[392157178,1761220237511,-545.24618199,0.00043788,2]
[392157184,1761220237554,-2390.45197088,0.00043788,2]
[392157186,1761220237566,-516.05648914,0.00043788,2]
[392157210,1761220237777,-11287.05589306,0.00043788,2]
[392157212,1761220237789,-545.7199074,0.00043788,2]
[392157215,1761220237809,-4134.27081399,0.00043788,2]
[392157217,1761220237818,-25264.1944,0.00043789,2]
[392157219,1761220237828,-312.3758093,0.00043879,20]
[392157220,1761220237837,-500.0,0.00043888,120]
[392157221,1761220237846,-500.0,0.00043888,120]
[392157222,1761220237855,-500.0,0.00043888,120]
[392157223,1761220237864,-1773.82,0.00043888,120]
[392157224,1761220237873,-500.0,0.00043888,120]
[392157225,1761220237882,-500.0,0.00043888,120]
[392157226,1761220237894,-500.0,0.00043888,120]
[392157228,1761220237903,-500.0,0.00043888,120]
[392157230,1761220237912,-500.0,0.00043888,120]
[392157232,1761220237921,-500.0,0.00043888,60]
[392157235,1761220237931,-500.0,0.00043888,120]
[392157237,1761220237940,-500.0,0.00043888,120]
[392157239,1761220237949,-500.0,0.00043888,120]
[392157241,1761220237958,-500.0,0.00043888,120]
[392157243,1761220237967,-5633.52,0.00043888,120]
[392157245,1761220237978,-500.0,0.00043888,120]
[392157247,1761220237987,-312.3758093,0.00043889,20]
[392157249,1761220237996,-500.0,0.00043897,120]
[392157251,1761220238006,-908.67,0.00043897,120]
[392157253,1761220238017,-500.0,0.00043897,120]
[392157255,1761220238028,-151.51733269,0.00043898,28]
[392157257,1761220238039,-312.3758093,0.00043899,20]
[392157259,1761220238050,-512.8492352,0.00043899,15]
[392157261,1761220238060,-500.0,0.00043977,3]
[392157264,1761220238071,-500.0,0.00043977,3]
[392157266,1761220238082,-500.0,0.00043977,3]
[392157268,1761220238095,-500.0,0.00043977,3]
[392157270,1761220238105,-500.0,0.00043977,3]
[392157272,1761220238115,-500.0,0.00043977,3]
[392157274,1761220238125,-500.0,0.00043977,3]
[392157276,1761220238134,-500.0,0.00043977,3]
[392157278,1761220238145,-500.0,0.00043977,3]
[392157280,1761220238155,-500.0,0.00043977,3]
[392157282,1761220238164,-500.0,0.00043977,3]
[392157284,1761220238175,-500.0,0.00043977,3]
[392157286,1761220238185,-500.0,0.00043977,3]
[392157304,1761220238350,-500.0,0.00043977,3]
[392157306,1761220238360,-500.0,0.00043977,3]
[392157308,1761220238370,-500.0,0.00043977,3]
[392157310,1761220238379,-500.0,0.00043977,3]
[392157312,1761220238388,-500.0,0.00043977,3]
[392157314,1761220238398,-500.0,0.00043977,3]
[392157316,1761220238407,-500.0,0.00043977,3]
[392157318,1761220238416,-514.84070869,0.00043977,3]
[392157320,1761220238428,-500.0,0.00043977,3]
[392157322,1761220238438,-500.0,0.00043977,3]
[392157324,1761220238452,-500.0,0.00043977,3]
[392157326,1761220238461,-533.88981491,0.00043977,3]
[392157328,1761220238471,-500.0,0.00043977,3]
[392157330,1761220238480,-500.0,0.00043977,3]
[392157332,1761220238491,-500.0,0.00043977,3]
[392157334,1761220238500,-553.64373807,0.00043977,3]
[392157336,1761220238510,-500.0,0.00043977,3]
[392157338,1761220238520,-500.0,0.00043977,3]
[392157340,1761220238530,-500.0,0.00043977,3]
[392157342,1761220238539,-578.20924308,0.00043977,3]
[392157344,1761220238548,-500.0,0.00043977,3]
[392157346,1761220238561,-599.60298507,0.00043977,3]
[392157348,1761220238570,-500.0,0.00043977,3]
[392157350,1761220238579,-500.0,0.00043977,3]
[392157352,1761220238588,-574.12855637,0.00043977,3]
[392157354,1761220238598,-500.0,0.00043977,3]
[392157356,1761220238607,-621.78829552,0.00043977,3]
[392157358,1761220238617,-500.0,0.00043977,3]
[392157360,1761220238627,-595.37131296,0.00043977,3]
[392157362,1761220238637,-644.79446246,0.00043977,3]
[392157364,1761220238646,-500.0,0.00043977,3]
[392157366,1761220238656,-500.0,0.00043977,3]
[392157368,1761220238665,-617.40005154,0.00043977,3]
[392157370,1761220238675,-668.65185757,0.00043977,3]
[392157372,1761220238684,-500.0,0.00043977,3]
[392157374,1761220238693,-500.0,0.00043977,3]
[392157376,1761220238702,-640.24385345,0.00043977,3]
[392157378,1761220238712,-693.3919763,0.00043977,3]
[392157380,1761220238721,-500.0,0.00043977,3]
[392157382,1761220238731,-500.0,0.00043977,3]
[392157384,1761220238741,-719.04747942,0.00043977,3]
[392157386,1761220238750,-663.93287602,0.00043977,3]
[392157388,1761220238760,-500.0,0.00043977,3]
[392157390,1761220238770,-500.0,0.00043977,3]
[392157392,1761220238779,-745.65223616,0.00043977,3]
[392157394,1761220238788,-688.49839244,0.00043977,3]
[392157396,1761220238798,-432.15999199,0.00043977,3]
[392157398,1761220238808,-500.0,0.00043977,3]
[392157400,1761220238818,-713.97283296,0.00043977,3]
[392157401,1761220238827,-500.0,0.00043977,3]
[392157403,1761220238837,-250.0,0.00043977,3]
[392157406,1761220238848,-740.38982778,0.00043977,3]
[392157407,1761220238857,-500.0,0.00043977,3]
[392157410,1761220238867,-767.7842514,0.00043977,3]
[392157412,1761220238877,-250.0,0.00043977,3]
[392157413,1761220238887,-796.19226871,0.00043977,3]
[392157416,1761220238896,-250.0,0.00043977,3]
[392157418,1761220238906,-825.65138265,0.00043977,3]
[392157420,1761220238917,-250.0,0.00043977,3]
[392157422,1761220238927,-250.0,0.00043977,3]
[392157423,1761220238937,-250.0,0.00043977,3]
[392157425,1761220238947,-250.0,0.00043977,3]
[392157427,1761220238957,-250.0,0.00043977,3]
[392157429,1761220238967,-250.0,0.00043977,3]
[392157431,1761220238977,-250.0,0.00043977,3]
[392157433,1761220238986,-250.0,0.00043977,3]
[392157435,1761220238996,-250.0,0.00043977,3]
[392157437,1761220239006,-500.0,0.00043977,3]
[392157439,1761220239016,-250.0,0.00043977,3]
[392157441,1761220239026,-250.0,0.00043977,3]
[392157443,1761220239036,-500.0,0.00043977,3]
[392157446,1761220239046,-250.0,0.00043977,3]
[392157448,1761220239056,-250.0,0.00043977,3]
[392157450,1761220239066,-500.0,0.00043977,3]
[392157452,1761220239075,-250.0,0.00043977,3]
[392157454,1761220239085,-250.0,0.00043977,3]
[392157456,1761220239096,-564.84999782,0.00043977,3]
[392157458,1761220239106,-250.0,0.00043977,3]
[392157460,1761220239115,-250.0,0.00043977,3]
[392157462,1761220239125,-250.0,0.00043977,3]
[392157464,1761220239135,-250.0,0.00043977,3]
[392157466,1761220239144,-250.0,0.00043977,3]
[392157468,1761220239154,-6203.38530155,0.00043978,3]
[392157469,1761220239163,-2972.2492823,0.00043979,3]
[392157508,1761220239549,-500.0,0.00043888,120]
[392157512,1761220239559,-500.0,0.00043888,120]
[392157515,1761220239568,-2425.312954,0.00043979,3]
[392157518,1761220239578,-54646.40734482,0.00043979,3]
[392157523,1761220239604,-3728.10742171,0.00043979,3]
[392157543,1761220239766,-7260.18230557,0.00043979,3]
[392157545,1761220239776,-3137.8584471,0.00043988,2]
[392157546,1761220239786,-32256.8840652,0.00043988,2]
[392157548,1761220239795,-3664.2572789,0.00043988,2]
[392157551,1761220239805,-14585.4882382,0.00043988,3]
[392157552,1761220239814,-109391.161787,0.00043989,3]
[392157554,1761220239823,-182.23088546,0.00043989,7]
[392157556,1761220239832,-150.32,0.00043989,2]
[392157558,1761220239841,-150.32,0.00043989,2]
[392157560,1761220239850,-150.32,0.00043989,2]
[392157562,1761220239859,-150.32,0.00043989,2]
[392157564,1761220239869,-150.32,0.00043989,2]
[392157566,1761220239878,-2046.1037126,0.00043994,15]
[392157568,1761220239886,-311.7843581,0.00043998,30]
[392157570,1761220239896,-999.0,0.00043998,120]
[392157572,1761220239905,-1177.65810365,0.00043998,60]
[392157574,1761220239914,-150.0,0.00043998,60]
[392157577,1761220239924,-150.0,0.00043998,60]
[392157579,1761220239933,-1611078.18664232,0.00043999,120]
[392157581,1761220239943,-200.0,0.00043999,7]
[392157583,1761220239953,-45389.62201138,0.00044,120]
[392157585,1761220239962,-2100.0,0.00044,30]
[392157587,1761220239971,-150.0,0.00044053,60]
[392157590,1761220239990,-150.0,0.00044053,60]
[392157592,1761220240000,-433.0,0.00044055,7]
[392157594,1761220240010,-803.51844873,0.00044071,14]
[392157596,1761220240020,-1000.0,0.000441,7]
[392157598,1761220240030,-1000.0,0.000441,7]
[392157600,1761220240039,-150.0,0.00044108,60]
[392157602,1761220240048,-172.60283165,0.00044108,60]
[392157604,1761220240058,-500.0,0.00044109,120]
[392157606,1761220240067,-500.0,0.00044109,120]
[392157608,1761220240076,-500.0,0.00044109,120]
[392157610,1761220240086,-598.92,0.00044109,120]
[392157613,1761220240096,-644.06,0.00044109,120]
[392157615,1761220240105,-510.65,0.00044109,120]
[392157617,1761220240115,-500.0,0.00044109,120]
[392157619,1761220240124,-500.0,0.00044109,120]
[392157621,1761220240133,-573.33,0.00044109,120]
[392157623,1761220240142,-500.0,0.00044109,120]
[392157625,1761220240152,-210.71,0.00044109,30]
[392157627,1761220240161,-500.0,0.00044109,120]
[392157629,1761220240170,-500.0,0.00044109,120]
[392157631,1761220240179,-500.0,0.00044109,120]
[392157633,1761220240188,-500.0,0.00044109,120]
[392157634,1761220240197,-500.0,0.00044109,2]
[392157636,1761220240207,-500.0,0.00044109,120]
[392157638,1761220240217,-799.78,0.00044109,120]
[392157640,1761220240227,-500.0,0.00044109,120]
[392157642,1761220240236,-500.0,0.00044109,120]
[392157644,1761220240245,-500.0,0.00044109,120]
[392157646,1761220240255,-500.0,0.00044109,12]
[392157648,1761220240264,-300.0,0.00044109,120]
[392157650,1761220240275,-500.0,0.00044109,120]
[392157653,1761220240284,-500.0,0.00044109,120]
[392157654,1761220240293,-500.0,0.00044109,120]
[392157656,1761220240302,-500.0,0.00044109,120]
[392157659,1761220240312,-500.0,0.00044109,120]
[392157661,1761220240322,-535.74,0.00044109,120]
[392157663,1761220240331,-500.0,0.00044109,120]
[392157665,1761220240340,-500.0,0.00044109,120]
[392157667,1761220240349,-178.47464686,0.00044109,120]
[392157669,1761220240358,-509.49,0.00044109,120]
[392157671,1761220240371,-617.29576192,0.00044109,120]
[392157673,1761220240380,-518.85,0.00044109,120]
[392157675,1761220240390,-500.0,0.00044109,120]
[392157677,1761220240399,-1041.62,0.00044109,120]
[392157679,1761220240409,-642.27,0.00044109,120]
[392157681,1761220240419,-634.0717638,0.00044109,30]
[392157683,1761220240428,-500.0,0.00044109,120]
[392157685,1761220240439,-550.18,0.00044109,120]
[392157687,1761220240452,-518.73,0.00044109,120]
[392157689,1761220240462,-500.0,0.00044109,120]
[392157691,1761220240471,-535.67,0.00044109,120]
[392157693,1761220240483,-500.0,0.00044109,120]
[392157694,1761220240494,-603.64,0.00044109,120]
[392157695,1761220240504,-500.0,0.00044109,120]
[392157696,1761220240513,-551.47,0.00044109,120]
[392157697,1761220240523,-610.92,0.00044109,120]
[392157698,1761220240532,-156.73731926,0.00044109,120]
[392157699,1761220240541,-737.75,0.00044109,120]
[392157701,1761220240550,-500.0,0.00044109,120]
[392157703,1761220240560,-500.0,0.00044109,120]
[392157705,1761220240569,-500.0,0.00044109,120]
[392157707,1761220240579,-500.0,0.00044109,120]
[392157709,1761220240588,-500.0,0.00044109,120]
[392157711,1761220240598,-507.63,0.00044109,120]
[392157713,1761220240609,-500.0,0.00044109,120]
[392157715,1761220240618,-500.0,0.00044109,120]
[392157717,1761220240628,-500.0,0.00044109,120]
[392157719,1761220240637,-507.83,0.00044109,120]
[392157721,1761220240646,-672.01,0.00044109,120]
[392157723,1761220240656,-500.0,0.00044109,120]
[392157725,1761220240665,-500.0,0.00044109,120]
[392157727,1761220240675,-500.0,0.00044109,120]
[392157729,1761220240685,-2046.1037126,0.00044123,15]
[392157731,1761220240694,-500.0,0.00044162,120]
[392157733,1761220240704,-500.0,0.00044162,120]
[392157735,1761220240714,-500.0,0.00044162,120]
[392157737,1761220240723,-500.0,0.00044162,120]
[392157739,1761220240732,-500.0,0.00044162,120]
[392157741,1761220240741,-500.0,0.00044162,120]
[392157744,1761220240754,-500.0,0.00044162,120]
[392157746,1761220240764,-500.0,0.00044162,120]
[392157748,1761220240774,-2280.27,0.00044162,120]
[392157750,1761220240783,-500.0,0.00044162,120]
[392157752,1761220240792,-500.0,0.00044162,120]
[392157754,1761220240801,-500.0,0.00044162,120]
[392157756,1761220240810,-500.0,0.00044162,120]
[392157758,1761220240820,-500.0,0.00044162,120]
[392157760,1761220240830,-1351.52,0.00044162,120]
[392157762,1761220240839,-578.70547844,0.00044162,120]
[392157764,1761220240849,-500.0,0.00044162,120]
[392157766,1761220240858,-500.0,0.00044162,120]
[392157768,1761220240868,-500.0,0.00044162,30]
[392157770,1761220240877,-500.0,0.00044162,120]
[392157772,1761220240886,-500.0,0.00044162,120]
[392157774,1761220240896,-500.0,0.00044162,120]
[392157776,1761220240905,-500.0,0.00044162,120]
[392157778,1761220240914,-500.0,0.00044162,120]
[392157780,1761220240923,-500.0,0.00044162,120]
[392157782,1761220240933,-500.0,0.00044162,120]
[392157784,1761220240942,-500.0,0.00044162,120]
[392157786,1761220240951,-1927.06,0.00044162,30]
[392157788,1761220240961,-500.0,0.00044162,120]
[392157790,1761220240970,-500.0,0.00044162,120]
[392157792,1761220240979,-500.0,0.00044162,120]
[392157794,1761220240988,-500.0,0.00044162,30]
[392157796,1761220240997,-1185.24,0.00044162,120]
[392157798,1761220241006,-500.15249595,0.00044162,120]
[392157800,1761220241016,-500.0,0.00044162,120]
[392157802,1761220241026,-500.0,0.00044162,120]
[392157804,1761220241035,-500.0,0.00044162,120]
[392157806,1761220241045,-500.0,0.00044162,120]
[392157808,1761220241054,-500.0,0.00044162,120]
[392157810,1761220241063,-500.0,0.00044162,120]
[392157812,1761220241072,-500.0,0.00044162,120]
[392157814,1761220241081,-1773.82,0.00044162,120]
[392157816,1761220241090,-500.0,0.00044162,120]
[392157818,1761220241100,-500.0,0.00044162,120]
[392157820,1761220241110,-500.0,0.00044162,120]
[392157822,1761220241119,-500.0,0.00044162,120]
[392157824,1761220241129,-500.0,0.00044162,120]
[392157827,1761220241142,-500.0,0.00044162,60]
[392157829,1761220241152,-500.0,0.00044162,120]
[392157831,1761220241161,-500.0,0.00044162,120]
[392157833,1761220241171,-500.0,0.00044162,120]
[392157835,1761220241180,-5633.52,0.00044162,120]
[392157837,1761220241190,-436.01319013,0.00044162,120]
[392157839,1761220241199,-500.0,0.00044162,120]
[392157841,1761220241209,-200.0,0.00044162,60]
[392157859,1761220241363,-500.0,0.00044171,120]
[392157861,1761220241373,-500.0,0.00044171,30]
[392157863,1761220241383,-500.0,0.00044171,120]
[392157865,1761220241392,-500.0,0.00044171,120]
[392157867,1761220241401,-500.0,0.00044171,120]
[392157870,1761220241411,-500.0,0.00044171,120]
[392157871,1761220241420,-500.0,0.00044171,120]
[392157873,1761220241429,-500.0,0.00044171,120]
[392157875,1761220241439,-715.84,0.00044171,120]
[392157877,1761220241451,-709.53,0.00044171,120]
[392157879,1761220241460,-500.0,0.00044171,120]
[392157881,1761220241469,-500.0,0.00044171,2]
[392157884,1761220241482,-500.0,0.00044171,120]
[392157886,1761220241493,-500.0,0.00044171,120]
[392157888,1761220241503,-500.0,0.00044171,120]
[392157890,1761220241512,-500.0,0.00044171,120]
[392157892,1761220241524,-561.42,0.00044171,120]
[392157894,1761220241534,-721.57,0.00044171,120]
[392157896,1761220241543,-500.0,0.00044171,120]
[392157898,1761220241553,-624.39,0.00044171,120]
[392157900,1761220241563,-500.0,0.00044171,120]
[392157902,1761220241574,-500.0,0.00044171,120]
[392157904,1761220241583,-500.0,0.00044171,120]
[392157906,1761220241592,-500.0,0.00044171,120]
[392157908,1761220241601,-500.0,0.00044171,120]
[392157910,1761220241610,-500.0,0.00044171,120]
[392157912,1761220241620,-908.67,0.00044171,120]
[392157913,1761220241628,-500.0,0.00044171,120]
[392157914,1761220241637,-500.0,0.00044195,10]
[392157915,1761220241647,-1003.0,0.000442,7]
[392157916,1761220241656,-1000.0,0.000442,7]
[392157917,1761220241666,-1000.0,0.000442,7]
[392157918,1761220241676,-1000.0,0.000442,7]
[392157920,1761220241685,-168.0,0.00044209,2]
[392157922,1761220241695,-151.51733266,0.00044239,28]
[392157923,1761220241703,-803.51844873,0.00044243,15]
[392157925,1761220241713,-2046.1037126,0.00044253,15]
[392157927,1761220241722,-167.19,0.00044297,2]
[392157929,1761220241731,-4133.32607523,0.00044299,120]
[392157931,1761220241740,-1000.0,0.000443,7]
[392157933,1761220241749,-1000.0,0.000443,7]
[392157935,1761220241759,-182.48,0.00044372,14]
[392157937,1761220241768,-150.32,0.00044373,2]
[392157939,1761220241778,-2046.1037126,0.00044382,15]
[392157941,1761220241787,-500.0,0.00044383,120]
[392157943,1761220241796,-500.0,0.00044383,120]
[392157945,1761220241807,-500.0,0.00044383,120]
[392157947,1761220241816,-598.92,0.00044383,120]
[392157949,1761220241825,-644.06,0.00044383,120]
[392157951,1761220241835,-510.65,0.00044383,120]
[392157953,1761220241844,-500.0,0.00044383,120]
[392157955,1761220241854,-460.58635,0.00044383,120]
[392157958,1761220241867,-573.33,0.00044383,120]
[392157960,1761220241876,-500.0,0.00044383,120]
[392157961,1761220241885,-210.71,0.00044383,30]
[392157963,1761220241894,-500.0,0.00044383,120]
[392157966,1761220241903,-500.0,0.00044383,120]
[392157968,1761220241913,-500.0,0.00044383,120]
[392157970,1761220241923,-500.0,0.00044383,120]
[392157972,1761220241933,-500.0,0.00044383,2]
[392157974,1761220241943,-500.0,0.00044383,120]
[392157976,1761220241952,-799.78,0.00044383,120]
[392157978,1761220241961,-500.0,0.00044383,120]
[392157980,1761220241971,-500.0,0.00044383,120]
[392157982,1761220241980,-466.42052305,0.00044383,120]
[392157984,1761220241990,-500.0,0.00044383,12]
[392157986,1761220241999,-300.0,0.00044383,120]
[392157988,1761220242009,-500.0,0.00044383,120]
[392157990,1761220242019,-500.0,0.00044383,120]
[392157992,1761220242028,-500.0,0.00044383,120]
[392157994,1761220242038,-500.0,0.00044383,120]
[392157996,1761220242046,-500.0,0.00044383,120]
[392157998,1761220242055,-535.74,0.00044383,120]
[392158000,1761220242065,-500.0,0.00044383,120]
[392158002,1761220242074,-500.0,0.00044383,120]
[392158003,1761220242084,-509.49,0.00044383,120]
[392158006,1761220242094,-518.85,0.00044383,120]
[392158007,1761220242103,-500.0,0.00044383,120]
[392158009,1761220242113,-1041.62,0.00044383,120]
[392158012,1761220242123,-642.27,0.00044383,120]
[392158014,1761220242132,-447.46633928,0.00044383,120]
[392158015,1761220242141,-550.18,0.00044383,120]
[392158018,1761220242151,-518.73,0.00044383,120]
[392158020,1761220242161,-500.0,0.00044383,120]
[392158022,1761220242170,-535.67,0.00044383,120]
[392158024,1761220242179,-500.0,0.00044383,120]
[392158026,1761220242188,-603.64,0.00044383,120]
[392158028,1761220242198,-500.0,0.00044383,120]
[392158029,1761220242207,-551.47,0.00044383,120]
[392158032,1761220242217,-500.0,0.00044383,120]
[392158033,1761220242226,-610.92,0.00044383,120]
[392158035,1761220242235,-737.75,0.00044383,120]
[392158037,1761220242244,-500.0,0.00044383,120]
[392158040,1761220242256,-500.0,0.00044383,120]
[392158042,1761220242266,-500.0,0.00044383,120]
[392158044,1761220242275,-500.0,0.00044383,120]
[392158046,1761220242285,-500.0,0.00044383,120]
[392158048,1761220242294,-507.63,0.00044383,120]
[392158050,1761220242303,-500.0,0.00044383,120]
[392158052,1761220242312,-500.0,0.00044383,120]
[392158054,1761220242322,-500.0,0.00044383,120]
[392158056,1761220242331,-507.83,0.00044383,120]
[392158058,1761220242340,-672.01,0.00044383,120]
[392158060,1761220242349,-500.0,0.00044383,120]
[392158062,1761220242358,-500.0,0.00044383,120]
[392158064,1761220242367,-500.0,0.00044383,120]
[392158066,1761220242378,-719.02660738,0.0004441,120]
[392158068,1761220242388,-803.51844873,0.00044415,15]
[392158071,1761220242398,-500.0,0.00044436,120]
[392158073,1761220242408,-500.0,0.00044436,120]
[392158075,1761220242418,-500.0,0.00044436,120]
[392158077,1761220242428,-500.0,0.00044436,120]
[392158079,1761220242438,-500.0,0.00044436,120]
[392158081,1761220242450,-500.0,0.00044436,120]
[392158083,1761220242460,-500.0,0.00044436,120]
[392158085,1761220242469,-489.93399508,0.00044436,120]
[392158087,1761220242479,-2280.27,0.00044436,120]
[392158089,1761220242490,-500.0,0.00044436,120]
[392158091,1761220242499,-500.0,0.00044436,120]
[392158093,1761220242509,-500.0,0.00044436,120]
[392158095,1761220242518,-500.0,0.00044436,120]
[392158097,1761220242528,-500.0,0.00044436,120]
[392158099,1761220242537,-1351.52,0.00044436,120]
[392158101,1761220242546,-585.20319432,0.00044436,120]
[392158103,1761220242555,-500.0,0.00044436,120]
[392158104,1761220242565,-500.0,0.00044436,30]
[392158106,1761220242575,-500.0,0.00044436,120]
[392158109,1761220242584,-500.0,0.00044436,120]
[392158110,1761220242594,-500.0,0.00044436,120]
[392158112,1761220242603,-500.0,0.00044436,120]
[392158114,1761220242613,-500.0,0.00044436,120]
[392158116,1761220242622,-500.0,0.00044436,120]
[392158118,1761220242632,-500.0,0.00044436,120]
[392158120,1761220242641,-500.0,0.00044436,120]
[392158122,1761220242651,-1927.06,0.00044436,30]
[392158124,1761220242661,-500.0,0.00044436,120]
[392158126,1761220242671,-500.0,0.00044436,120]
[392158128,1761220242680,-500.0,0.00044436,120]
[392158131,1761220242690,-500.0,0.00044436,30]
[392158132,1761220242699,-1185.24,0.00044436,120]
[392158133,1761220242708,-270.86881039,0.00044436,120]
[392158134,1761220242717,-500.0,0.00044436,120]
[392158135,1761220242726,-500.0,0.00044436,120]
[392158136,1761220242736,-500.0,0.00044436,120]
[392158137,1761220242745,-500.0,0.00044436,120]
[392158139,1761220242754,-500.0,0.00044436,120]
[392158141,1761220242764,-500.0,0.00044436,120]
[392158143,1761220242773,-1773.82,0.00044436,120]
[392158145,1761220242783,-500.0,0.00044436,120]
[392158147,1761220242793,-500.0,0.00044436,120]
[392158149,1761220242801,-500.0,0.00044436,120]
[392158151,1761220242811,-500.0,0.00044436,120]
[392158153,1761220242820,-500.0,0.00044436,120]
[392158155,1761220242829,-500.0,0.00044436,60]
[392158157,1761220242838,-500.0,0.00044436,120]
[392158159,1761220242847,-500.0,0.00044436,120]
[392158161,1761220242857,-500.0,0.00044436,120]
[392158162,1761220242869,-5633.52,0.00044436,120]
[392158164,1761220242879,-500.0,0.00044436,120]
[392158166,1761220242888,-200.0,0.00044439,7]
[392158169,1761220242898,-234.58,0.00044439,2]
[392158170,1761220242907,-500.0,0.00044445,120]
[392158172,1761220242922,-500.0,0.00044445,30]
[392158175,1761220242931,-500.0,0.00044445,120]
[392158177,1761220242942,-500.0,0.00044445,120]
[392158179,1761220242951,-500.0,0.00044445,120]
[392158180,1761220242960,-500.0,0.00044445,120]
[392158182,1761220242970,-500.0,0.00044445,120]
[392158185,1761220242979,-500.0,0.00044445,120]
[392158186,1761220242988,-715.84,0.00044445,120]
[392158188,1761220242998,-709.53,0.00044445,120]
[392158190,1761220243008,-198.69143668,0.00044445,120]
[392158193,1761220243018,-500.0,0.00044445,2]
[392158195,1761220243033,-500.0,0.00044445,120]
[392158197,1761220243046,-500.0,0.00044445,120]
[392158199,1761220243056,-500.0,0.00044445,120]
[392158202,1761220243066,-500.0,0.00044445,120]
[392158203,1761220243076,-561.42,0.00044445,120]
[392158205,1761220243086,-721.57,0.00044445,120]
[392158208,1761220243096,-500.0,0.00044445,120]
[392158210,1761220243106,-624.39,0.00044445,120]
[392158211,1761220243115,-500.0,0.00044445,120]
[392158214,1761220243125,-500.0,0.00044445,120]
[392158216,1761220243135,-500.0,0.00044445,120]
[392158218,1761220243145,-500.0,0.00044445,120]